[Event "*** Titled Tuesday Blitz"]
[Site "Chess.com"]
[Date "2018.01.02"]
[Round "3"]
[White "CookiesAndIceCream"]
[Black "AndrewMcStone"]
[Result "1-0"]
[WhiteElo "2056"]
[BlackElo "2068"]
[TimeControl "180+2"]
[EndTime "13:38:13 PST"]
[Termination "CookiesAndIceCream won on time"]

1. e4 {[%clk 0:03:01.9]} 1... Nc6 {[%clk 0:02:58.3]} 2. Nf3 {[%clk 0:03:03]}
2... d6 {[%clk 0:02:58.8]} 3. d4 {[%clk 0:03:04.2]} 3... Nf6 {[%clk 0:02:58]} 4.
Nc3 {[%clk 0:03:05.1]} 4... g6 {[%clk 0:02:57.5]} 5. d5 {[%clk 0:03:02.4]} 5...
Nb8 {[%clk 0:02:57]} 6. Be2 {[%clk 0:03:00.2]} 6... Bg7 {[%clk 0:02:58]} 7. O-O
{[%clk 0:03:01.5]} 7... O-O {[%clk 0:02:59.3]} 8. Be3 {[%clk 0:03:00]} 8... e5
{[%clk 0:02:54.3]} 9. dxe6 {[%clk 0:02:51.2]} 9... Bxe6 {[%clk 0:02:54.3]} 10.
Nd4 {[%clk 0:02:48.8]} 10... Bd7 {[%clk 0:02:54.1]} 11. f4 {[%clk 0:02:45.5]}
11... Re8 {[%clk 0:02:55]} 12. Bf3 {[%clk 0:02:45.9]} 12... Nc6 {[%clk
0:02:44.7]} 13. Qd2 {[%clk 0:02:33]} 13... Ng4 {[%clk 0:02:15.7]} 14. Bxg4
{[%clk 0:02:20.5]} 14... Bxg4 {[%clk 0:02:13.6]} 15. Nxc6 {[%clk 0:02:12.8]}
15... bxc6 {[%clk 0:02:14]} 16. f5 {[%clk 0:02:10.3]} 16... gxf5 {[%clk
0:01:42.2]} 17. exf5 {[%clk 0:02:10.7]} 17... Qh4 {[%clk 0:01:25.8]} 18. Bg5
{[%clk 0:01:51.6]} 18... Qh5 {[%clk 0:01:11.7]} 19. h3 {[%clk 0:01:43.2]} 19...
Bxh3 {[%clk 0:00:46.6]} 20. gxh3 {[%clk 0:01:43.4]} 20... Bxc3 {[%clk
0:00:45.7]} 21. bxc3 {[%clk 0:01:43.3]} 21... Re2 {[%clk 0:00:46.4]} 22. Qf4
{[%clk 0:01:44.6]} 22... Qxh3 {[%clk 0:00:27.5]} 23. Rf2 {[%clk 0:01:45.5]}
23... Rae8 {[%clk 0:00:24.6]} 24. Raf1 {[%clk 0:01:16.6]} 24... R2e4 {[%clk
0:00:16.2]} 25. Qh2 {[%clk 0:00:58.4]} 25... Rg4+ {[%clk 0:00:17]} 26. Rg2
{[%clk 0:00:59.7]} 26... Qxh2+ {[%clk 0:00:06.7]} 27. Kxh2 {[%clk 0:01:00.3]}
27... Rxg2+ {[%clk 0:00:06]} 28. Kxg2 {[%clk 0:01:01.3]} 28... Re2+ {[%clk
0:00:05.6]} 29. Rf2 {[%clk 0:01:01.8]} 29... Re1 {[%clk 0:00:06.7]} 30. Bf6
{[%clk 0:00:59.1]} 30... Ra1 {[%clk 0:00:06.5]} 31. Kf3 {[%clk 0:00:57.3]} 31...
Rxa2 {[%clk 0:00:06.2]} 32. Rg2+ {[%clk 0:00:58.5]} 32... Kf8 {[%clk 0:00:07.2]}
33. Rh2 {[%clk 0:00:59.4]} 33... Ke8 {[%clk 0:00:03.9]} 34. Ke3 {[%clk
0:00:58.6]} 34... c5 {[%clk 0:00:04.4]} 35. Kd3 {[%clk 0:00:59.4]} 35... Ra4
{[%clk 0:00:04.6]} 36. Rxh7 {[%clk 0:00:59.9]} 36... Rf4 {[%clk 0:00:05]} 37.
Rh5 {[%clk 0:00:51]} 37... a5 {[%clk 0:00:05.8]} 38. Ke3 {[%clk 0:00:51]} 38...
Rf1 {[%clk 0:00:05.8]} 39. Rh8+ {[%clk 0:00:51.2]} 39... Kd7 {[%clk 0:00:06.1]}
40. Rf8 {[%clk 0:00:51.3]} 40... Kc6 {[%clk 0:00:04.2]} 41. Rxf7 {[%clk
0:00:48.6]} 41... Rxf5 {[%clk 0:00:04.7]} 42. Rf8 {[%clk 0:00:50.2]} 42... Rf1
{[%clk 0:00:04]} 43. Bg7 {[%clk 0:00:48.7]} 43... a4 {[%clk 0:00:04.3]} 44. Rxf1
{[%clk 0:00:48.5]} 1-0

[Event "*** Titled Tuesday Blitz"]
[Site "Chess.com"]
[Date "2018.01.02"]
[Round "3"]
[White "gkchesstiger"]
[Black "RoelandPruijssers"]
[Result "1/2-1/2"]
[WhiteElo "2603"]
[BlackElo "2483"]
[TimeControl "180+2"]
[EndTime "13:38:16 PST"]
[Termination "Game drawn by agreement"]

1. d4 {[%clk 0:03:01.9]} 1... Nf6 {[%clk 0:03:00.6]} 2. Nf3 {[%clk 0:03:03.3]}
2... g6 {[%clk 0:03:01.8]} 3. Bf4 {[%clk 0:03:04.3]} 3... Bg7 {[%clk 0:03:03.3]}
4. c3 {[%clk 0:03:05.8]} 4... O-O {[%clk 0:03:04.4]} 5. h3 {[%clk 0:03:07.3]}
5... d6 {[%clk 0:03:05.4]} 6. Nbd2 {[%clk 0:03:08.7]} 6... Nbd7 {[%clk 0:03:07]}
7. Bh2 {[%clk 0:03:06.7]} 7... b6 {[%clk 0:03:07.5]} 8. a4 {[%clk 0:03:06.8]}
8... a6 {[%clk 0:03:07.9]} 9. e4 {[%clk 0:03:07.8]} 9... Bb7 {[%clk 0:03:07.3]}
10. Bd3 {[%clk 0:03:08.7]} 10... c5 {[%clk 0:03:05.5]} 11. O-O {[%clk
0:03:08.3]} 11... Re8 {[%clk 0:02:33.7]} 12. e5 {[%clk 0:03:01.9]} 12... dxe5
{[%clk 0:02:33.2]} 13. dxe5 {[%clk 0:03:02.4]} 13... Nd5 {[%clk 0:02:31.5]} 14.
Re1 {[%clk 0:03:02.1]} 14... e6 {[%clk 0:02:27.7]} 15. Ne4 {[%clk 0:03:01]}
15... Qc7 {[%clk 0:02:18.9]} 16. Nd6 {[%clk 0:02:58.8]} 16... Red8 {[%clk
0:02:19.9]} 17. Nxb7 {[%clk 0:02:50.7]} 17... Qxb7 {[%clk 0:02:21.8]} 18. Qe2
{[%clk 0:02:51.9]} 18... Rdc8 {[%clk 0:01:22.8]} 19. Nd2 {[%clk 0:02:50.3]}
19... b5 {[%clk 0:00:54.3]} 20. Ne4 {[%clk 0:02:50.1]} 20... c4 {[%clk
0:00:52.4]} 21. Bc2 {[%clk 0:02:50.3]} 21... Qc7 {[%clk 0:00:39.5]} 22. Nd6
{[%clk 0:02:47.2]} 22... Rd8 {[%clk 0:00:31]} 23. axb5 {[%clk 0:02:47.3]} 23...
Nxe5 {[%clk 0:00:29.9]} 24. Nxf7 {[%clk 0:02:10.4]} 24... Kxf7 {[%clk
0:00:21.4]} 25. bxa6 {[%clk 0:02:10.7]} 25... Rdb8 {[%clk 0:00:17.3]} 26. Bxe5
{[%clk 0:02:07.3]} 26... Bxe5 {[%clk 0:00:19.2]} 27. Qxe5 {[%clk 0:02:08.4]}
27... Qxe5 {[%clk 0:00:21.1]} 28. Rxe5 {[%clk 0:02:09.4]} 28... Rxb2 {[%clk
0:00:22.2]} 29. Be4 {[%clk 0:02:09.6]} 29... Rb5 {[%clk 0:00:21.6]} 30. Bf3
{[%clk 0:01:55.1]} 30... Kf6 {[%clk 0:00:20]} 31. Re4 {[%clk 0:01:52.4]} 31...
Rb6 {[%clk 0:00:18.4]} 32. a7 {[%clk 0:01:49.2]} 32... Rb7 {[%clk 0:00:19.5]}
33. Rae1 {[%clk 0:01:49.3]} 33... Rb6 {[%clk 0:00:19.4]} 34. Rxc4 {[%clk
0:01:45.5]} 34... Rxa7 {[%clk 0:00:20.7]} 35. Rc5 {[%clk 0:01:43.4]} 35... Nf4
{[%clk 0:00:19.3]} 36. Rd1 {[%clk 0:01:38.8]} 36... Rba6 {[%clk 0:00:18.9]} 37.
Rc4 {[%clk 0:01:30.5]} 37... g5 {[%clk 0:00:17.9]} 38. h4 {[%clk 0:01:30]} 38...
h6 {[%clk 0:00:18.8]} 39. hxg5+ {[%clk 0:01:28.8]} 39... hxg5 {[%clk 0:00:20.7]}
40. g3 {[%clk 0:01:30.2]} 40... Ng6 {[%clk 0:00:22.2]} 41. Re4 {[%clk
0:01:21.8]} 41... Ra1 {[%clk 0:00:22.6]} 42. Ree1 {[%clk 0:01:16.6]} 42... Rxd1
{[%clk 0:00:23.2]} 43. Rxd1 {[%clk 0:01:17.8]} 43... Ne5 {[%clk 0:00:25.1]} 44.
Be2 {[%clk 0:01:18.2]} 44... Ra2 {[%clk 0:00:26]} 45. Kf1 {[%clk 0:01:18.6]}
45... Rc2 {[%clk 0:00:27]} 1/2-1/2

[Event "*** Titled Tuesday Blitz"]
[Site "Chess.com"]
[Date "2018.01.02"]
[Round "3"]
[White "julinha97"]
[Black "korason34"]
[Result "1-0"]
[WhiteElo "2223"]
[BlackElo "2327"]
[TimeControl "180+2"]
[EndTime "13:38:19 PST"]
[Termination "julinha97 won by resignation"]

1. e4 {[%clk 0:03:01.9]} 1... c5 {[%clk 0:02:58.8]} 2. Nf3 {[%clk 0:03:02.6]}
2... d6 {[%clk 0:02:59.8]} 3. d4 {[%clk 0:03:03.2]} 3... cxd4 {[%clk 0:03:01.7]}
4. Nxd4 {[%clk 0:03:04.4]} 4... Nf6 {[%clk 0:03:03.2]} 5. Nc3 {[%clk 0:03:05.4]}
5... a6 {[%clk 0:03:03.9]} 6. Be3 {[%clk 0:03:06.2]} 6... e5 {[%clk 0:03:03.4]}
7. Nb3 {[%clk 0:03:05.8]} 7... Be6 {[%clk 0:03:03.9]} 8. Qd2 {[%clk 0:02:57.9]}
8... Nbd7 {[%clk 0:03:02.3]} 9. O-O-O {[%clk 0:02:50.8]} 9... Be7 {[%clk
0:02:42.5]} 10. f4 {[%clk 0:02:50.2]} 10... Ng4 {[%clk 0:02:39.2]} 11. g3 {[%clk
0:02:50.2]} 11... Nxe3 {[%clk 0:02:34.9]} 12. Qxe3 {[%clk 0:02:51.7]} 12... O-O
{[%clk 0:02:32.7]} 13. Kb1 {[%clk 0:02:53.1]} 13... b5 {[%clk 0:02:17.9]} 14. f5
{[%clk 0:02:53.6]} 14... Bxb3 {[%clk 0:02:16.7]} 15. cxb3 {[%clk 0:02:54.5]}
15... Rc8 {[%clk 0:02:01]} 16. Nd5 {[%clk 0:02:46.2]} 16... Bg5 {[%clk 0:02:01]}
17. Qf3 {[%clk 0:02:35.8]} 17... Nb6 {[%clk 0:01:45.4]} 18. Be2 {[%clk
0:02:08.6]} 18... Nxd5 {[%clk 0:01:40.8]} 19. Rxd5 {[%clk 0:02:08.9]} 19... Rc6
{[%clk 0:01:37]} 20. h4 {[%clk 0:02:07.7]} 20... Bh6 {[%clk 0:01:36.4]} 21. Rhd1
{[%clk 0:01:46.5]} 21... Qc7 {[%clk 0:01:34.2]} 22. a3 {[%clk 0:01:38.6]} 22...
Rc8 {[%clk 0:01:33.4]} 23. g4 {[%clk 0:01:21.5]} 23... Rc1+ {[%clk 0:01:12]} 24.
Ka2 {[%clk 0:01:22.4]} 24... Qc2 {[%clk 0:00:56.2]} 25. Qd3 {[%clk 0:01:17.4]}
25... Qxd3 {[%clk 0:00:49.7]} 26. R5xd3 {[%clk 0:01:06.6]} 26... R1c2 {[%clk
0:00:43.1]} 27. Rxd6 {[%clk 0:01:01.1]} 27... Kf8 {[%clk 0:00:43.4]} 28. g5
{[%clk 0:01:02.1]} 28... Rxe2 {[%clk 0:00:42.8]} 29. gxh6 {[%clk 0:01:01.4]}
29... gxh6 {[%clk 0:00:43.7]} 30. f6 {[%clk 0:01:01.8]} 30... Ke8 {[%clk
0:00:40.5]} 31. Rxa6 {[%clk 0:01:01.5]} 31... Rxe4 {[%clk 0:00:41.9]} 32. Ra7
{[%clk 0:01:01.2]} 32... Rf4 {[%clk 0:00:38]} 33. Re7+ {[%clk 0:01:02]} 33...
Kf8 {[%clk 0:00:39]} 34. Rxe5 {[%clk 0:01:03.1]} 34... Rxf6 {[%clk 0:00:40.4]}
35. Rxb5 {[%clk 0:01:04.7]} 35... Rf4 {[%clk 0:00:40.8]} 36. h5 {[%clk
0:01:04.8]} 36... Rf2 {[%clk 0:00:41]} 37. a4 {[%clk 0:01:01.3]} 37... Rcc2
{[%clk 0:00:41.4]} 38. Rb1 {[%clk 0:01:02.9]} 38... f5 {[%clk 0:00:42.5]} 39. a5
{[%clk 0:01:04.2]} 39... f4 {[%clk 0:00:41.4]} 40. a6 {[%clk 0:01:05.5]} 40...
Rc7 {[%clk 0:00:40.1]} 41. Rb7 {[%clk 0:01:04.9]} 41... Rc6 {[%clk 0:00:40.6]}
42. Rb8+ {[%clk 0:01:01.1]} 42... Kf7 {[%clk 0:00:39.9]} 43. Ra8 {[%clk
0:01:02.4]} 43... f3 {[%clk 0:00:40.1]} 44. b4 {[%clk 0:01:03.7]} 44... Re2
{[%clk 0:00:37.6]} 45. b5 {[%clk 0:01:03.4]} 45... Rc5 {[%clk 0:00:38.5]} 46. a7
{[%clk 0:01:01.2]} 46... Re7 {[%clk 0:00:36.6]} 47. Rf8+ {[%clk 0:01:00.4]}
47... Kxf8 {[%clk 0:00:34.5]} 48. a8=Q+ {[%clk 0:01:00.6]} 48... Kf7 {[%clk
0:00:35.7]} 49. Qxf3+ {[%clk 0:01:01.1]} 49... Ke8 {[%clk 0:00:36.2]} 50. b4
{[%clk 0:00:52.6]} 50... Ra7+ {[%clk 0:00:38.1]} 51. Kb3 {[%clk 0:00:52.4]} 1-0

[Event "*** Titled Tuesday Blitz"]
[Site "Chess.com"]
[Date "2018.01.02"]
[Round "3"]
[White "SanQui14"]
[Black "pandamaster3000"]
[Result "1-0"]
[WhiteElo "2197"]
[BlackElo "2262"]
[TimeControl "180+2"]
[EndTime "13:38:20 PST"]
[Termination "SanQui14 won by resignation"]

1. e4 {[%clk 0:03:01.9]} 1... e6 {[%clk 0:03:00.7]} 2. d4 {[%clk 0:03:02.2]}
2... d5 {[%clk 0:03:02.1]} 3. e5 {[%clk 0:03:03.6]} 3... c5 {[%clk 0:03:03.2]}
4. c3 {[%clk 0:03:05.2]} 4... Nc6 {[%clk 0:03:04.7]} 5. Nf3 {[%clk 0:03:06.6]}
5... Bd7 {[%clk 0:03:06.2]} 6. a3 {[%clk 0:03:06.3]} 6... f6 {[%clk 0:03:07.1]}
7. b4 {[%clk 0:03:02.2]} 7... fxe5 {[%clk 0:03:07.6]} 8. dxe5 {[%clk 0:03:03.5]}
8... Qc7 {[%clk 0:03:06.2]} 9. Bf4 {[%clk 0:03:02.7]} 9... c4 {[%clk 0:03:07.3]}
10. Be2 {[%clk 0:02:59.5]} 10... Nge7 {[%clk 0:03:07.6]} 11. O-O {[%clk
0:02:43.2]} 11... Ng6 {[%clk 0:02:59.9]} 12. Bg3 {[%clk 0:02:44.2]} 12... Be7
{[%clk 0:02:35.1]} 13. Re1 {[%clk 0:02:44.2]} 13... O-O-O {[%clk 0:02:25.4]} 14.
Bf1 {[%clk 0:02:34.8]} 14... h5 {[%clk 0:02:23.7]} 15. h3 {[%clk 0:02:33]} 15...
Rdf8 {[%clk 0:02:23.9]} 16. a4 {[%clk 0:02:29.2]} 16... Nf4 {[%clk 0:02:20.5]}
17. Na3 {[%clk 0:02:28.5]} 17... a6 {[%clk 0:02:15.6]} 18. Nc2 {[%clk
0:02:28.5]} 18... g5 {[%clk 0:02:11]} 19. b5 {[%clk 0:02:18.1]} 19... Na5 {[%clk
0:02:11.1]} 20. bxa6 {[%clk 0:02:15.9]} 20... bxa6 {[%clk 0:02:12.2]} 21. Nb4
{[%clk 0:02:14.9]} 21... Qa7 {[%clk 0:02:05.5]} 22. Nd4 {[%clk 0:01:53.3]} 22...
Rhg8 {[%clk 0:01:16.2]} 23. Be2 {[%clk 0:01:48.9]} 23... g4 {[%clk 0:00:55.8]}
24. hxg4 {[%clk 0:01:47.9]} 24... hxg4 {[%clk 0:00:57.7]} 25. Bxg4 {[%clk
0:01:46.9]} 25... Nb3 {[%clk 0:00:45.1]} 26. Bxf4 {[%clk 0:01:15.7]} 26... Nxd4
{[%clk 0:00:41.4]} 27. Be3 {[%clk 0:01:08.9]} 27... Bc5 {[%clk 0:00:19.3]} 28.
Bxd4 {[%clk 0:00:54.7]} 28... a5 {[%clk 0:00:19.6]} 29. Nc2 {[%clk 0:00:51.3]}
29... Rf4 {[%clk 0:00:19.8]} 30. f3 {[%clk 0:00:45]} 30... Be8 {[%clk
0:00:06.2]} 31. Qd2 {[%clk 0:00:44.5]} 31... Rgf8 {[%clk 0:00:06]} 32. Qe3
{[%clk 0:00:42.1]} 32... Bxd4 {[%clk 0:00:05.7]} 33. Nxd4 {[%clk 0:00:43.6]}
33... Qh7 {[%clk 0:00:06.1]} 34. Bxe6+ {[%clk 0:00:44.5]} 34... Kd8 {[%clk
0:00:06.3]} 35. Bh3 {[%clk 0:00:39.1]} 35... R4f7 {[%clk 0:00:04.2]} 36. Ne6+
{[%clk 0:00:39.5]} 36... Ke7 {[%clk 0:00:05.3]} 37. Nxf8 {[%clk 0:00:39.1]}
37... Kxf8 {[%clk 0:00:07.2]} 38. e6 {[%clk 0:00:39.9]} 38... Rg7 {[%clk
0:00:08.8]} 39. e7+ {[%clk 0:00:38.8]} 39... Kg8 {[%clk 0:00:10.3]} 40. Qe6+
{[%clk 0:00:39]} 40... Kh8 {[%clk 0:00:11.1]} 41. Qf5 {[%clk 0:00:36.3]} 41...
Qh4 {[%clk 0:00:08]} 42. Re5 {[%clk 0:00:31.3]} 42... Qg3 {[%clk 0:00:05.4]} 43.
Qf8+ {[%clk 0:00:28.2]} 43... Kh7 {[%clk 0:00:06]} 44. Qxe8 {[%clk 0:00:28.2]}
44... Qxf3 {[%clk 0:00:04.9]} 45. Rh5+ {[%clk 0:00:28.1]} 1-0

[Event "*** Titled Tuesday Blitz"]
[Site "Chess.com"]
[Date "2018.01.02"]
[Round "3"]
[White "Ginger_GM"]
[Black "oskariot"]
[Result "1-0"]
[WhiteElo "2476"]
[BlackElo "2392"]
[TimeControl "180+2"]
[EndTime "13:38:25 PST"]
[Termination "Ginger_GM won by resignation"]

1. d4 {[%clk 0:03:01.9]} 1... Nf6 {[%clk 0:02:53.2]} 2. c4 {[%clk 0:02:56.4]}
2... g6 {[%clk 0:02:47.6]} 3. Nc3 {[%clk 0:02:57]} 3... Bg7 {[%clk 0:02:44.9]}
4. e4 {[%clk 0:02:57.3]} 4... d6 {[%clk 0:02:46.1]} 5. Be2 {[%clk 0:02:57.9]}
5... O-O {[%clk 0:02:39.4]} 6. Be3 {[%clk 0:02:58.1]} 6... c5 {[%clk 0:02:09.4]}
7. e5 {[%clk 0:02:53.1]} 7... Nfd7 {[%clk 0:01:56.8]} 8. exd6 {[%clk 0:02:51.2]}
8... exd6 {[%clk 0:01:56.5]} 9. Nf3 {[%clk 0:02:51.4]} 9... Nc6 {[%clk
0:01:55.4]} 10. O-O {[%clk 0:02:47.8]} 10... cxd4 {[%clk 0:01:46]} 11. Nxd4
{[%clk 0:02:47.9]} 11... Nde5 {[%clk 0:01:42]} 12. Ndb5 {[%clk 0:02:27.7]} 12...
Be6 {[%clk 0:01:04.7]} 13. Nd5 {[%clk 0:02:18.2]} 13... Rc8 {[%clk 0:00:49.7]}
14. f4 {[%clk 0:02:09.3]} 14... a6 {[%clk 0:00:38.8]} 15. Nbc3 {[%clk
0:02:02.4]} 15... Nd7 {[%clk 0:00:38.2]} 16. Qd2 {[%clk 0:01:54.3]} 16... Re8
{[%clk 0:00:38.1]} 17. Rad1 {[%clk 0:01:52]} 17... Bxd5 {[%clk 0:00:33.1]} 18.
Nxd5 {[%clk 0:01:51]} 18... Nf6 {[%clk 0:00:34.7]} 19. Bf3 {[%clk 0:01:24.8]}
19... Ne4 {[%clk 0:00:34.8]} 20. Bxe4 {[%clk 0:01:25.1]} 20... Rxe4 {[%clk
0:00:36.7]} 21. b3 {[%clk 0:01:20.7]} 21... Qh4 {[%clk 0:00:32.6]} 22. Bf2
{[%clk 0:01:20.5]} 22... Qh5 {[%clk 0:00:30.1]} 23. Rfe1 {[%clk 0:01:14.7]}
23... Rce8 {[%clk 0:00:30.9]} 24. Rxe4 {[%clk 0:01:15]} 24... Rxe4 {[%clk
0:00:32]} 25. Re1 {[%clk 0:01:16.2]} 25... Qf5 {[%clk 0:00:30.5]} 26. Rxe4
{[%clk 0:01:12.3]} 26... Qxe4 {[%clk 0:00:32.4]} 27. h3 {[%clk 0:00:57.6]} 27...
Nd4 {[%clk 0:00:22.9]} 28. Qe3 {[%clk 0:00:52]} 28... Qxe3 {[%clk 0:00:12.1]}
29. Bxe3 {[%clk 0:00:53]} 29... Ne6 {[%clk 0:00:10.6]} 30. Kf2 {[%clk 0:00:53]}
30... Kf8 {[%clk 0:00:09.4]} 31. g4 {[%clk 0:00:50.7]} 31... f5 {[%clk
0:00:10.6]} 32. Kf3 {[%clk 0:00:44.9]} 32... Ke8 {[%clk 0:00:10.9]} 33. Ke2
{[%clk 0:00:35.8]} 33... Kd7 {[%clk 0:00:11.8]} 34. Kd3 {[%clk 0:00:36.7]} 34...
Kc6 {[%clk 0:00:12]} 35. gxf5 {[%clk 0:00:37.5]} 35... gxf5 {[%clk 0:00:11.1]}
36. Ne7+ {[%clk 0:00:38.8]} 36... Kd7 {[%clk 0:00:12.7]} 37. Nxf5 {[%clk
0:00:40.7]} 37... Bf6 {[%clk 0:00:13.7]} 38. Ng3 {[%clk 0:00:41.1]} 38... Ng7
{[%clk 0:00:14.1]} 39. Ke4 {[%clk 0:00:41.7]} 39... Be7 {[%clk 0:00:13.4]} 40.
Nf5 {[%clk 0:00:41.2]} 40... Nxf5 {[%clk 0:00:14.1]} 41. Kxf5 {[%clk 0:00:43.1]}
41... b5 {[%clk 0:00:15.6]} 42. cxb5 {[%clk 0:00:43.3]} 42... axb5 {[%clk
0:00:15.1]} 43. a4 {[%clk 0:00:45.1]} 43... bxa4 {[%clk 0:00:10.9]} 44. bxa4
{[%clk 0:00:47]} 44... Bd8 {[%clk 0:00:10.3]} 45. Bd4 {[%clk 0:00:46.4]} 45...
Bc7 {[%clk 0:00:10.3]} 46. Kf6 {[%clk 0:00:43.7]} 46... Kc6 {[%clk 0:00:10]} 47.
Ke6 {[%clk 0:00:42.4]} 1-0

[Event "*** Titled Tuesday Blitz"]
[Site "Chess.com"]
[Date "2018.01.02"]
[Round "3"]
[White "Zufi1811"]
[Black "GM_dmitrij"]
[Result "0-1"]
[WhiteElo "2397"]
[BlackElo "2620"]
[TimeControl "180+2"]
[EndTime "13:38:27 PST"]
[Termination "GM_dmitrij won by resignation"]

1. e4 {[%clk 0:03:01.9]} 1... e5 {[%clk 0:03:00.4]} 2. Nf3 {[%clk 0:03:02.7]}
2... Nc6 {[%clk 0:03:02]} 3. Bb5 {[%clk 0:03:04.2]} 3... a6 {[%clk 0:03:02.3]}
4. Ba4 {[%clk 0:03:05.7]} 4... g6 {[%clk 0:03:03.7]} 5. c3 {[%clk 0:03:01.8]}
5... d6 {[%clk 0:03:04.9]} 6. d4 {[%clk 0:03:01.1]} 6... Bd7 {[%clk 0:03:06.1]}
7. O-O {[%clk 0:02:58.8]} 7... Bg7 {[%clk 0:03:05.7]} 8. Bg5 {[%clk 0:02:58.7]}
8... f6 {[%clk 0:03:05.2]} 9. Be3 {[%clk 0:02:57]} 9... Nh6 {[%clk 0:03:05.7]}
10. dxe5 {[%clk 0:02:50.5]} 10... fxe5 {[%clk 0:02:57.3]} 11. Bg5 {[%clk
0:02:40.2]} 11... Qc8 {[%clk 0:02:58.1]} 12. Nbd2 {[%clk 0:02:36.2]} 12... Nf7
{[%clk 0:02:58]} 13. Be3 {[%clk 0:02:27.7]} 13... O-O {[%clk 0:02:58.3]} 14. Bb3
{[%clk 0:02:28.9]} 14... Kh8 {[%clk 0:02:47]} 15. Ng5 {[%clk 0:02:28.3]} 15...
Nxg5 {[%clk 0:02:47.6]} 16. Bxg5 {[%clk 0:02:30.2]} 16... Bf6 {[%clk 0:02:37.7]}
17. Bxf6+ {[%clk 0:02:28.1]} 17... Rxf6 {[%clk 0:02:38.3]} 18. Nc4 {[%clk
0:02:30]} 18... Qf8 {[%clk 0:02:30.9]} 19. Ne3 {[%clk 0:02:29.2]} 19... Ne7
{[%clk 0:02:32.4]} 20. a4 {[%clk 0:02:26.2]} 20... a5 {[%clk 0:02:31.1]} 21. Qd3
{[%clk 0:02:13.3]} 21... b6 {[%clk 0:02:30.6]} 22. f3 {[%clk 0:02:12.8]} 22...
Qg7 {[%clk 0:02:27.1]} 23. Nd5 {[%clk 0:02:11.7]} 23... Nxd5 {[%clk 0:02:27.5]}
24. Bxd5 {[%clk 0:02:13.6]} 24... Raf8 {[%clk 0:02:27.5]} 25. b4 {[%clk
0:02:13.2]} 25... g5 {[%clk 0:02:15.8]} 26. bxa5 {[%clk 0:02:11.5]} 26... bxa5
{[%clk 0:02:17.7]} 27. Qe3 {[%clk 0:01:51.8]} 27... g4 {[%clk 0:01:54.9]} 28.
fxg4 {[%clk 0:01:53.7]} 28... Bxg4 {[%clk 0:01:56.4]} 29. Bc4 {[%clk 0:01:48.2]}
29... Bf3 {[%clk 0:01:46.8]} 30. Rf2 {[%clk 0:01:41.1]} 30... Bxe4 {[%clk
0:01:16.6]} 31. Raf1 {[%clk 0:01:19.6]} 31... d5 {[%clk 0:01:07.8]} 32. Be2
{[%clk 0:01:00.5]} 32... h6 {[%clk 0:00:40]} 33. h3 {[%clk 0:00:51.7]} 33... Rf4
{[%clk 0:00:34.7]} 34. Kh2 {[%clk 0:00:47.9]} 34... Qg5 {[%clk 0:00:34.4]} 35.
Qc5 {[%clk 0:00:34.2]} 35... Rxf2 {[%clk 0:00:18.7]} 36. Rxf2 {[%clk 0:00:36.1]}
36... Rxf2 {[%clk 0:00:19.4]} 37. Qxf2 {[%clk 0:00:34.6]} 37... Qf4+ {[%clk
0:00:20.9]} 38. Qxf4 {[%clk 0:00:35.6]} 38... exf4 {[%clk 0:00:22.8]} 39. h4
{[%clk 0:00:20.7]} 39... Kg7 {[%clk 0:00:23.4]} 40. Kh3 {[%clk 0:00:21.9]} 40...
Bf5+ {[%clk 0:00:23.7]} 41. Bg4 {[%clk 0:00:23.2]} 41... Kf6 {[%clk 0:00:23.9]}
42. h5 {[%clk 0:00:16.6]} 42... Kg5 {[%clk 0:00:23.3]} 43. Bxf5 {[%clk
0:00:17.4]} 43... Kxf5 {[%clk 0:00:25.2]} 44. Kh4 {[%clk 0:00:18.4]} 44... c5
{[%clk 0:00:26.5]} 45. g4+ {[%clk 0:00:19.2]} 45... fxg3 {[%clk 0:00:26.9]} 46.
Kxg3 {[%clk 0:00:21.1]} 46... Ke4 {[%clk 0:00:27]} 0-1

[Event "*** Titled Tuesday Blitz"]
[Site "Chess.com"]
[Date "2018.01.02"]
[Round "3"]
[White "Big_Fishy"]
[Black "pedromartinez91"]
[Result "0-1"]
[WhiteElo "2318"]
[BlackElo "2226"]
[TimeControl "180+2"]
[EndTime "13:38:28 PST"]
[Termination "pedromartinez91 won by resignation"]

1. e4 {[%clk 0:03:01.9]} 1... g6 {[%clk 0:02:55.8]} 2. d4 {[%clk 0:03:02.1]}
2... Bg7 {[%clk 0:02:55.5]} 3. Nc3 {[%clk 0:03:02.5]} 3... c6 {[%clk 0:02:53.3]}
4. Nf3 {[%clk 0:02:59.3]} 4... Nf6 {[%clk 0:02:48.8]} 5. e5 {[%clk 0:02:58.9]}
5... Nd5 {[%clk 0:02:49.2]} 6. Nxd5 {[%clk 0:02:54.6]} 6... cxd5 {[%clk
0:02:48.8]} 7. Bd3 {[%clk 0:02:54.5]} 7... d6 {[%clk 0:02:48.6]} 8. O-O {[%clk
0:02:51.3]} 8... Nc6 {[%clk 0:02:47.2]} 9. exd6 {[%clk 0:02:44.7]} 9... Qxd6
{[%clk 0:02:46.9]} 10. c3 {[%clk 0:02:44.8]} 10... O-O {[%clk 0:02:46.4]} 11.
Re1 {[%clk 0:02:45.2]} 11... Bg4 {[%clk 0:02:39.5]} 12. h3 {[%clk 0:02:45.8]}
12... Bxf3 {[%clk 0:02:40.4]} 13. Qxf3 {[%clk 0:02:46.7]} 13... e5 {[%clk
0:02:41.2]} 14. dxe5 {[%clk 0:02:41.1]} 14... Nxe5 {[%clk 0:02:39]} 15. Qg3
{[%clk 0:02:41.4]} 15... Qb6 {[%clk 0:02:15.5]} 16. Bc2 {[%clk 0:01:11.2]} 16...
Rfe8 {[%clk 0:02:03.7]} 17. Rd1 {[%clk 0:01:00.4]} 17... Nc4 {[%clk 0:01:28.6]}
18. Bb3 {[%clk 0:00:58.8]} 18... a5 {[%clk 0:01:13.8]} 19. Ba4 {[%clk
0:00:33.7]} 19... Re4 {[%clk 0:01:00]} 20. b3 {[%clk 0:00:23.5]} 20... Nd6
{[%clk 0:00:13.6]} 21. Bf4 {[%clk 0:00:17.9]} 21... Nf5 {[%clk 0:00:11.8]} 22.
Qf3 {[%clk 0:00:15]} 22... Qe6 {[%clk 0:00:13.3]} 23. Bb5 {[%clk 0:00:10.7]}
23... d4 {[%clk 0:00:14]} 24. Bc4 {[%clk 0:00:10.3]} 24... Qe8 {[%clk 0:00:14]}
25. cxd4 {[%clk 0:00:10.1]} 25... Nxd4 {[%clk 0:00:14.5]} 26. Qg4 {[%clk
0:00:08.7]} 26... h5 {[%clk 0:00:11.6]} 27. Qg5 {[%clk 0:00:08.2]} 27... Ne2+
{[%clk 0:00:12.2]} 28. Bxe2 {[%clk 0:00:09.2]} 28... Rxe2 {[%clk 0:00:14.1]} 29.
Rac1 {[%clk 0:00:09.7]} 29... Re6 {[%clk 0:00:11.7]} 30. Be3 {[%clk 0:00:10.7]}
30... Bf6 {[%clk 0:00:12.5]} 31. Qb5 {[%clk 0:00:11.5]} 31... Qxb5 {[%clk
0:00:12.3]} 32. Rc4 {[%clk 0:00:09.8]} 32... Rae8 {[%clk 0:00:12.8]} 33. Rdc1
{[%clk 0:00:10.7]} 33... Rxe3 {[%clk 0:00:13.1]} 34. fxe3 {[%clk 0:00:12]} 34...
Bg5 {[%clk 0:00:14.4]} 35. R1c3 {[%clk 0:00:11.5]} 35... Rxe3 {[%clk 0:00:13.8]}
36. Rc8+ {[%clk 0:00:11.7]} 36... Kg7 {[%clk 0:00:14.5]} 37. R3c4 {[%clk
0:00:13]} 37... Qf5 {[%clk 0:00:13.7]} 38. Kh2 {[%clk 0:00:12.7]} 38... Bf4+
{[%clk 0:00:14.4]} 39. g3 {[%clk 0:00:13.7]} 39... Re2+ {[%clk 0:00:14.6]} 40.
Kg1 {[%clk 0:00:14.2]} 40... Qb1+ {[%clk 0:00:15.7]} 41. Rc1 {[%clk 0:00:15.6]}
41... Bxc1 {[%clk 0:00:16.4]} 42. Kf1 {[%clk 0:00:16.6]} 42... Rxa2 {[%clk
0:00:17.3]} 0-1